lending/lending_fUSD_20250808
["ID","MTS","AMOUNT","RATE_DAILY","PERIOD"]
[377979582,1754645432635,-1364.9,0.00018771,2]
[377979583,1754645432644,-400.0,0.00018771,2]
[377979584,1754645432654,-438.72,0.00018771,2]
[377979585,1754645432663,-401.99,0.00018771,2]
[377979586,1754645432672,-616.73,0.00018771,2]
[377979588,1754645432682,-400.0,0.00018771,2]
[377979590,1754645432691,-678.36,0.00018771,2]
[377979592,1754645432701,-469.12,0.00018771,2]
[377979594,1754645432710,-577.83,0.00018771,2]
[377979595,1754645432720,-401.05,0.00018771,2]
[377979597,1754645432729,-1384.59,0.00018771,2]
[377979600,1754645432739,-612.5,0.00018771,2]
[377979603,1754645432748,-400.0,0.00018771,2]
[377979606,1754645432757,-426.8,0.00018771,2]
[377979608,1754645432766,-913.78,0.00018771,2]
[377979611,1754645432776,-658.25,0.00018771,2]
[377979614,1754645432786,-570.79,0.00018771,2]
[377979616,1754645432795,-632.8,0.00018771,2]
[377979617,1754645432804,-851.02,0.00018771,2]
[377979619,1754645432813,-906.62,0.00018771,2]
[377979621,1754645432823,-678.4,0.00018771,2]
[377979623,1754645432832,-400.0,0.00018771,2]
[377979624,1754645432842,-770.78,0.00018771,2]
[377979625,1754645432852,-400.0,0.00018771,2]
[377979626,1754645432861,-400.0,0.00018771,2]
[377979627,1754645432870,-878.38,0.00018771,2]
[377979628,1754645432879,-810.0,0.00018771,2]
[377979629,1754645432889,-900.35,0.00018771,2]
[377979630,1754645432898,-1346.05,0.00018771,2]
[377979631,1754645432907,-853.05,0.00018771,2]
[377979632,1754645432917,-1173.07,0.00018771,2]
[377979633,1754645432926,-444.63,0.00018771,2]
[377979634,1754645432936,-885.3,0.00018771,2]
[377979635,1754645432945,-952.75,0.00018771,2]
[377979636,1754645432955,-604.63,0.00018771,2]
[377979637,1754645432964,-366.768796,0.00018771,2]
[377979638,1754645432973,-1409.3,0.00018771,2]
[377979639,1754645432982,-611.51,0.00018771,2]
[377979640,1754645432991,-431.46967,0.00018771,2]
[377979641,1754645433000,-942.36,0.00018771,2]
[377979642,1754645433010,-400.0,0.00018771,2]
[377979643,1754645433019,-859.24,0.00018771,2]
[377979644,1754645433029,-739.85,0.00018771,2]
[377979645,1754645433038,-606.77,0.00018771,2]
[377979646,1754645433047,-1126.42,0.00018771,2]
[377979647,1754645433057,-932.76,0.00018771,2]
[377979648,1754645433066,-708.32,0.00018771,2]
[377979649,1754645433077,-359.542325,0.00018771,2]
[377979650,1754645433087,-877.72,0.00018771,2]
[377979651,1754645433096,-881.61,0.00018771,2]
[377979652,1754645433106,-400.0,0.00018771,2]
[377979653,1754645433115,-792.36,0.00018771,2]
[377979654,1754645433125,-1040.87,0.00018771,2]
[377979655,1754645433135,-650.14,0.00018771,2]
[377979656,1754645433144,-833.02,0.00018771,2]
[377979657,1754645433154,-461.21,0.00018771,2]
[377979658,1754645433163,-400.0,0.00018771,2]
[377979659,1754645433173,-469.2,0.00018771,2]
[377979660,1754645433183,-627.93,0.00018771,2]
[377979661,1754645433193,-400.0,0.00018771,2]
[377979662,1754645433203,-1168.53,0.00018771,2]
[377979663,1754645433212,-790.19,0.00018771,2]
[377979664,1754645433222,-1177.85,0.00018771,2]
[377979665,1754645433231,-1797.79,0.00018771,2]
[377979666,1754645433240,-854.54,0.00018771,2]
[377979667,1754645433250,-549.88,0.00018771,2]
[377979668,1754645433259,-400.0,0.00018771,2]
[377979669,1754645433271,-1090.39,0.00018771,2]
[377979670,1754645433281,-400.0,0.00018771,2]
[377979671,1754645433291,-878.57,0.00018771,2]
[377979672,1754645433301,-400.0,0.00018771,2]
[377979673,1754645433311,-400.0,0.00018771,2]
[377979674,1754645433322,-400.0,0.00018771,2]
[377979675,1754645433332,-400.0,0.00018771,2]
[377979676,1754645433341,-400.0,0.00018771,2]
[377979677,1754645433351,-2252.38,0.00018771,2]
[377979678,1754645433361,-609.1,0.00018771,2]
[377979679,1754645433371,-712.73,0.00018771,2]
[377979680,1754645433381,-540.93,0.00018771,2]
[377979681,1754645433390,-1001.57,0.00018771,2]
[377979682,1754645433400,-1000.59,0.00018771,2]
[377979683,1754645433409,-1097.0,0.00018771,2]
[377979684,1754645433419,-1006.61,0.00018771,2]
[377979685,1754645433429,-1129.25,0.00018771,2]
[377979686,1754645433439,-837.14,0.00018771,2]
[377979687,1754645433451,-907.37,0.00018771,2]
[377979688,1754645433460,-1234.92,0.00018771,2]
[377979689,1754645433470,-1087.5,0.00018771,2]
[377979690,1754645433480,-643.85,0.00018771,2]
[377979691,1754645433490,-748.19,0.00018771,2]
[377979692,1754645433500,-1186.47,0.00018771,2]
[377979693,1754645433510,-731.55,0.00018771,2]
[377979694,1754645433520,-400.0,0.00018771,2]
[377979695,1754645433529,-785.55,0.00018771,2]
[377979696,1754645433539,-725.35,0.00018771,2]
[377979697,1754645433548,-400.0,0.00018771,2]
[377979698,1754645433557,-1418.99,0.00018771,2]
[377979699,1754645433567,-713.31,0.00018771,2]
[377979700,1754645433576,-589.15,0.00018771,2]
[377979701,1754645433586,-1044.98,0.00018771,2]
[377979702,1754645433595,-821.83,0.00018771,2]
[377979703,1754645433607,-480.25,0.00018771,2]
[377979704,1754645433616,-338.45944682,0.00018771,2]
[377979705,1754645433626,-770.44,0.00018771,2]
[377979706,1754645433635,-660.81,0.00018771,2]
[377979707,1754645433645,-1033.2,0.00018771,2]
[377979708,1754645433655,-550.77,0.00018771,2]
[377979709,1754645433665,-844.85,0.00018771,2]
[377979710,1754645433674,-262.96,0.00018771,2]
[377979711,1754645433684,-590.79,0.00018771,2]
[377979712,1754645433694,-893.96,0.00018771,2]
[377979713,1754645433705,-1093.01,0.00018771,2]
[377979714,1754645433715,-1025.16,0.00018771,2]
[377979715,1754645433724,-400.0,0.00018771,2]
[377979716,1754645433734,-355.40793298,0.00018771,2]
[377979717,1754645433753,-387.15206702,0.00018771,2]
[377979718,1754645433763,-770.29,0.00018771,2]
[377979719,1754645433772,-400.0,0.00018771,2]
[377979720,1754645433782,-793.92,0.00018771,2]
[377979721,1754645433791,-400.0,0.00018771,2]
[377979722,1754645433800,-137.13975643,0.00018771,2]
[377979723,1754645433812,-756.14024357,0.00018771,2]
[377979724,1754645433821,-1210.32,0.00018771,2]
[377979725,1754645433831,-642.8,0.00018771,2]
[377979726,1754645433840,-625.53,0.00018771,2]
[377979727,1754645433849,-1980.62,0.00018771,2]
[377979728,1754645433859,-662.71,0.00018771,2]
[377979729,1754645433868,-400.0,0.00018771,2]
[377979730,1754645433878,-400.0,0.00018771,2]
[377979731,1754645433888,-925.62,0.00018771,2]
[377979732,1754645433897,-400.0,0.00018771,2]
[377979733,1754645433907,-822.26,0.00018771,2]
[377979734,1754645433916,-1405.15,0.00018771,2]
[377979735,1754645433925,-479.25,0.00018771,2]
[377979736,1754645433936,-787.7,0.00018771,2]
[377979737,1754645433945,-614.34,0.00018771,2]
[377979738,1754645433955,-659.43,0.00018771,2]
[377979739,1754645433964,-691.18907144,0.00018771,2]
[377979740,1754645433976,-741.48092856,0.00018771,2]
[377979741,1754645433986,-524.36,0.00018771,2]
[377979742,1754645433996,-452.26,0.00018771,2]
[377979743,1754645434005,-779.33,0.00018771,2]
[377979744,1754645434015,-60.79908472,0.00018771,2]
[377979745,1754645434027,-339.20091528,0.00018771,2]
[377979746,1754645434037,-1228.95,0.00018771,2]
[377979747,1754645434046,-971.16,0.00018771,2]
[377979748,1754645434056,-400.0,0.00018771,2]
[377979749,1754645434065,-24.41667567,0.00018771,2]
[377979750,1754645437881,-1825.72789481,0.00018396,2]
[377979751,1754645437892,-400.0,0.0001877,2]
[377979752,1754645437901,-400.0,0.0001877,2]
[377979753,1754645438154,-925.87,0.0001877,2]
[377979754,1754645438163,-550.96332433,0.00018771,2]
[377979755,1754645438172,-1094.47,0.00018771,2]
[377979756,1754645438184,-1315.72,0.00018771,2]
[377979757,1754645438193,-1749.9,0.00018771,2]
[377979758,1754645438203,-657.48,0.00018771,2]
[377979759,1754645438213,-615.69,0.00018771,2]
[377979760,1754645438222,-400.0,0.00018771,2]
[377979761,1754645438232,-603.52,0.00018771,2]
[377979762,1754645438241,-1150.64,0.00018771,2]
[377979763,1754645438251,-746.44,0.00018771,2]
[377979764,1754645438261,-688.24,0.00018771,2]
[377979765,1754645438271,-541.41,0.00018771,2]
[377979766,1754645438281,-671.05,0.00018771,2]
[377979767,1754645438290,-400.0,0.00018771,2]
[377979768,1754645438300,-687.98,0.00018771,2]
[377979769,1754645438309,-528.37,0.00018771,2]
[377979770,1754645438319,-851.71,0.00018771,2]
[377979771,1754645438329,-197.01003091,0.00018771,2]
[377979772,1754645438358,-1372.08996909,0.00018771,2]
[377979773,1754645438367,-609.45531508,0.00018771,2]
[377979775,1754645440184,-369.83468492,0.00018771,2]
[377979776,1754645440194,-426.94,0.00018771,2]
[377979777,1754645440204,-695.56,0.00018771,2]
[377979778,1754645440213,-509.41,0.00018771,2]
[377979779,1754645440222,-742.26,0.00018771,2]
[377979780,1754645440232,-400.0,0.00018771,2]
[377979781,1754645440241,-1284.28,0.00018771,2]
[377979782,1754645440250,-779.54,0.00018771,2]
[377979783,1754645440260,-503.26,0.00018771,2]
[377979784,1754645440269,-523.12,0.00018771,2]
[377979785,1754645440279,-959.06,0.00018771,2]
[377979786,1754645440289,-1020.54,0.00018771,2]
[377979787,1754645440299,-1481.48,0.00018771,2]
[377979788,1754645440309,-551.44,0.00018771,2]
[377979789,1754645440318,-974.48,0.00018771,2]
[377979790,1754645440328,-504.77,0.00018771,2]
[377979791,1754645440338,-975.2,0.00018771,2]
[377979792,1754645440347,-1108.7,0.00018771,2]
[377979793,1754645440357,-1308.86,0.00018771,2]
[377979794,1754645440367,-2005.04,0.00018771,2]
[377979795,1754645440376,-727.15,0.00018771,2]
[377979796,1754645440386,-400.0,0.00018771,2]
[377979797,1754645440395,-434.06,0.00018771,2]
[377979798,1754645440405,-1414.58,0.00018771,2]
[377979799,1754645440415,-845.72,0.00018771,2]
[377979800,1754645440424,-1079.53,0.00018771,2]
[377979801,1754645440435,-869.10315939,0.00018771,2]
[377979802,1754645440458,-41.29684061,0.00018771,2]
[377979803,1754645440467,-793.93,0.00018771,2]
[377979804,1754645440478,-893.38,0.00018771,2]
[377979805,1754645440488,-469.09,0.00018771,2]
[377979806,1754645440497,-708.63,0.00018771,2]
[377979807,1754645440507,-400.0,0.00018771,2]
[377979808,1754645440517,-400.0,0.00018771,2]
[377979809,1754645440528,-907.29,0.00018771,2]
[377979810,1754645440538,-697.39,0.00018771,2]
[377979811,1754645440547,-1025.33,0.00018771,2]
[377979812,1754645440556,-736.52,0.00018771,2]
[377979813,1754645440565,-378.97180448,0.00018771,2]
[377979814,1754645440575,-693.34,0.00018771,2]
[377979815,1754645440584,-1286.59,0.00018771,2]
[377979816,1754645440594,-5165.66,0.00018771,2]
[377979817,1754645440604,-653.94,0.00018771,2]
[377979818,1754645440613,-1500.18,0.00018771,2]
[377979819,1754645440622,-854.09,0.00018771,2]
[377979820,1754645440633,-784.5,0.00018771,2]
[377979821,1754645440642,-768.93,0.00018771,2]
[377979822,1754645440651,-617.8,0.00018771,2]
[377979823,1754645440661,-400.0,0.00018771,2]
[377979824,1754645440670,-709.31,0.00018771,2]
[377979825,1754645440680,-1145.48,0.00018771,2]
[377979826,1754645440691,-400.0,0.00018771,2]
[377979827,1754645440701,-2471.05,0.00018771,2]
[377979828,1754645440710,-985.04,0.00018771,2]
[377979829,1754645440719,-400.0,0.00018771,2]
[377979830,1754645440729,-649.6,0.00018771,2]
[377979831,1754645440738,-400.0,0.00018771,2]
[377979832,1754645440748,-483.93162381,0.00018771,2]
[377979833,1754645440757,-348.13677684,0.00018771,2]
[377979834,1754645440767,-1352.63,0.00018771,2]
[377979835,1754645440776,-1721.19,0.00018771,2]
[377979836,1754645440785,-1547.7,0.00018771,2]
[377979837,1754645440795,-400.0,0.00018771,2]
[377979838,1754645440804,-1389.89,0.00018771,2]
[377979839,1754645440813,-1039.31,0.00018771,2]
[377979840,1754645440822,-818.66,0.00018771,2]
[377979841,1754645440832,-400.0,0.00018771,2]
[377979842,1754645440841,-400.0,0.00018771,2]
[377979843,1754645440850,-400.0,0.00018771,2]
[377979844,1754645440859,-1027.34,0.00018771,2]
[377979845,1754645440868,-833.22,0.00018771,2]
[377979846,1754645440877,-426.87,0.00018771,2]
[377979847,1754645440887,-414.44,0.00018771,2]
[377979848,1754645440896,-1236.54,0.00018771,2]
[377979849,1754645440905,-1084.66,0.00018771,2]
[377979850,1754645440914,-675.06,0.00018771,2]
[377979851,1754645440924,-400.0,0.00018771,2]
[377979852,1754645440934,-400.0,0.00018771,2]
[377979853,1754645440944,-2255.39,0.00018771,2]
[377979854,1754645440953,-400.0,0.00018771,2]
[377979855,1754645440963,-400.0,0.00018771,2]
[377979856,1754645440972,-486.73,0.00018771,2]
[377979857,1754645440981,-400.0,0.00018771,2]
[377979858,1754645440991,-775.55,0.00018771,2]
[377979859,1754645441000,-400.0,0.00018771,2]
[377979860,1754645441012,-1511.53,0.00018771,2]
[377979861,1754645441021,-419.09,0.00018771,2]
[377979862,1754645441031,-769.44,0.00018771,2]
[377979863,1754645441040,-944.73,0.00018771,2]
[377979864,1754645441050,-841.32,0.00018771,2]
[377979865,1754645441059,-1019.53,0.00018771,2]
[377979866,1754645441069,-400.0,0.00018771,2]
[377979867,1754645441079,-742.7,0.00018771,2]
[377979868,1754645441089,-930.28,0.00018771,2]
[377979869,1754645441098,-1227.71,0.00018771,2]
[377979870,1754645441107,-867.87,0.00018771,2]
[377979873,1754645441117,-710.88,0.00018771,2]
[377979874,1754645441126,-502.7,0.00018771,2]
[377979877,1754645441136,-400.0,0.00018771,2]
[377979878,1754645441146,-1393.24,0.00018771,2]
[377979881,1754645441155,-613.39,0.00018771,2]
[377979883,1754645441164,-400.0,0.00018771,2]
[377979884,1754645441173,-400.0,0.00018771,2]
[377979886,1754645441183,-400.0,0.00018771,2]
[377979888,1754645441192,-885.25,0.00018771,2]
[377979890,1754645441201,-436.72,0.00018771,2]
[377979892,1754645441210,-937.94,0.00018771,2]
[377979893,1754645441219,-949.89,0.00018771,2]
[377979895,1754645441229,-890.75,0.00018771,2]
[377979897,1754645441239,-671.51,0.00018771,2]
[377979899,1754645441248,-400.0,0.00018771,2]
[377979901,1754645441257,-400.0,0.00018771,2]
[377979903,1754645441266,-865.14,0.00018771,2]
[377979905,1754645441275,-1632.23,0.00018771,2]
[377979907,1754645441285,-1263.71,0.00018771,2]
[377979909,1754645441294,-424.61,0.00018771,2]
[377979911,1754645441303,-400.0,0.00018771,2]
[377979913,1754645441312,-400.0,0.00018771,2]
[377979915,1754645441321,-400.0,0.00018771,2]
[377979917,1754645441330,-400.0,0.00018771,2]
[377979919,1754645441340,-468.35313921,0.00018771,2]
[377979920,1754645441349,-926.82,0.00018771,2]
[377979922,1754645441358,-696.13,0.00018771,2]
[377979924,1754645441367,-1222.28,0.00018771,2]
[377979927,1754645441386,-1021.39,0.00018771,2]
[377979929,1754645441397,-1898.1,0.00018771,2]
[377979932,1754645441407,-1577.6,0.00018771,2]
[377979934,1754645441416,-160.12,0.00018772,2]
[377979935,1754645441426,-400.0,0.00018772,2]
[377979938,1754645441437,-586.26,0.00018772,2]
[377979940,1754645441449,-400.0,0.00018772,2]
[377979942,1754645441459,-400.0,0.00018772,2]
[377979944,1754645441468,-400.0,0.00018772,2]
[377979946,1754645441478,-400.0,0.00018772,2]
[377979947,1754645441489,-400.0,0.00018772,2]
[377979950,1754645441499,-400.0,0.00018772,2]
[377979952,1754645441509,-400.0,0.00018772,2]
[377979954,1754645441518,-410.47,0.00018772,2]
[377979956,1754645441529,-400.0,0.00018772,2]
[377979958,1754645441539,-691.14,0.00018772,2]
[377979960,1754645441549,-485.45,0.00018772,2]
[377979962,1754645441558,-400.0,0.00018772,2]
[377979964,1754645441568,-409.02,0.00018772,2]
[377979966,1754645441577,-400.0,0.00018772,2]
[377979968,1754645441586,-412.85,0.00018772,2]
[377979970,1754645441596,-400.0,0.00018772,2]
[377979972,1754645441606,-400.0,0.00018772,2]
[377979974,1754645441615,-400.0,0.00018772,2]
[377979976,1754645441625,-400.0,0.00018772,2]
[377979978,1754645441635,-599.54,0.00018772,2]
[377979980,1754645441644,-400.0,0.00018772,2]
[377979982,1754645441653,-400.0,0.00018772,2]
[377979984,1754645441663,-400.0,0.00018772,2]
[377979986,1754645441672,-700.33,0.00018772,2]
[377979988,1754645441681,-400.0,0.00018772,2]
[377979989,1754645441691,-400.0,0.00018772,2]
[377979991,1754645441700,-470.7,0.00018772,2]
[377979993,1754645441710,-400.0,0.00018772,2]
[377979995,1754645441719,-404.27,0.00018772,2]
[377979998,1754645441729,-523.99,0.00018772,2]
[377979999,1754645441738,-807.19,0.00018772,2]
[377980001,1754645441747,-194.98900667,0.00018772,2]
[377980003,1754645441757,-300.0,0.00018772,2]
[377980005,1754645441766,-696.94,0.00018772,2]
[377980007,1754645441775,-400.0,0.00018772,2]
[377980009,1754645441784,-400.0,0.00018772,2]
[377980011,1754645441793,-350.85352506,0.00018772,2]
[377980013,1754645441802,-755.59,0.00018772,2]
[377980015,1754645441811,-400.0,0.00018772,2]
[377980017,1754645441820,-400.0,0.00018772,2]
[377980019,1754645441829,-400.0,0.00018772,2]
[377980021,1754645441838,-437.26145094,0.00018772,2]
[377980023,1754645441847,-633.24,0.00018772,2]
[377980025,1754645441857,-793.64,0.00018772,2]
[377980027,1754645441866,-400.0,0.00018772,2]
[377980029,1754645441875,-524.78,0.00018772,2]
[377980031,1754645441885,-714.14,0.00018772,2]
[377980033,1754645441894,-400.0,0.00018772,2]
[377980035,1754645441905,-400.0,0.00018772,2]
[377980037,1754645441915,-400.0,0.00018772,2]
[377980040,1754645441926,-400.0,0.00018772,2]
[377980042,1754645441936,-519.28,0.00018772,2]
[377980044,1754645441947,-400.0,0.00018772,2]
[377980046,1754645441956,-824.46,0.00018772,2]
[377980048,1754645441966,-400.0,0.00018772,2]
[377980050,1754645441975,-400.0,0.00018772,2]
[377980052,1754645441984,-400.0,0.00018772,2]
[377980054,1754645441994,-400.0,0.00018772,2]
[377980056,1754645442003,-1003.48,0.00018772,2]
[377980058,1754645442014,-808.42,0.00018772,2]
[377980060,1754645442024,-406.68,0.00018772,2]
[377980062,1754645442033,-707.71,0.00018772,2]
[377980064,1754645442043,-1058.34,0.00018772,2]
[377980066,1754645442052,-400.0,0.00018772,2]
[377980068,1754645442062,-400.0,0.00018772,2]
[377980070,1754645442071,-400.0,0.00018772,2]
[377980072,1754645442080,-400.0,0.00018772,2]
[377980074,1754645442089,-400.0,0.00018772,2]
[377980076,1754645442099,-400.0,0.00018772,2]
[377980078,1754645442109,-400.0,0.00018772,2]
[377980080,1754645442119,-400.0,0.00018772,2]
[377980082,1754645442128,-735.97,0.00018772,2]
[377980084,1754645442138,-945.37,0.00018772,2]
[377980086,1754645442148,-400.0,0.00018772,2]
[377980088,1754645442157,-400.0,0.00018772,2]
[377980090,1754645442166,-400.0,0.00018772,2]
[377980092,1754645442176,-400.0,0.00018772,2]
[377980094,1754645442185,-453.76,0.00018772,2]
[377980096,1754645442194,-400.0,0.00018772,2]
[377980098,1754645442204,-1301.07,0.00018772,2]
[377980100,1754645442213,-787.53,0.00018772,2]
[377980102,1754645442223,-400.0,0.00018772,2]
[377980104,1754645442232,-785.33,0.00018772,2]
[377980106,1754645442242,-670.33,0.00018772,2]
[377980108,1754645442252,-980.95,0.00018772,2]
[377980110,1754645442262,-400.0,0.00018772,2]
[377980112,1754645442271,-400.0,0.00018772,2]
[377980114,1754645442281,-400.0,0.00018772,2]
[377980115,1754645442290,-400.0,0.00018772,2]
[377980117,1754645442299,-432.58,0.00018772,2]
[377980119,1754645442308,-400.0,0.00018772,2]
[377980121,1754645442318,-1092.25,0.00018772,2]
[377980123,1754645442327,-400.0,0.00018772,2]
[377980125,1754645442336,-400.0,0.00018772,2]
[377980127,1754645442346,-400.0,0.00018772,2]
[377980129,1754645442355,-912.66,0.00018772,2]
[377980131,1754645442364,-400.0,0.00018772,2]
[377980133,1754645442374,-400.0,0.00018772,2]
[377980135,1754645442383,-400.0,0.00018772,2]
[377980137,1754645442392,-400.0,0.00018772,2]
[377980139,1754645442401,-825.88,0.00018772,2]
[377980141,1754645442410,-649.23,0.00018772,2]
[377980143,1754645442419,-439.99,0.00018772,2]
[377980145,1754645442429,-400.0,0.00018772,2]
[377980147,1754645442443,-441.9,0.00018772,2]
[377980149,1754645442453,-632.6,0.00018772,2]
[377980151,1754645442463,-468.12,0.00018772,2]
[377980153,1754645442473,-423.76,0.00018772,2]
[377980155,1754645442483,-400.0,0.00018772,2]
[377980157,1754645442492,-1583.93,0.00018772,2]
[377980159,1754645442501,-400.0,0.00018772,2]
[377980161,1754645442510,-400.0,0.00018772,2]
[377980163,1754645442520,-400.0,0.00018772,2]
[377980165,1754645442530,-697.84,0.00018772,2]
[377980167,1754645442540,-400.0,0.00018772,2]
[377980169,1754645442549,-566.7,0.00018772,2]
[377980171,1754645442559,-400.0,0.00018772,2]
[377980173,1754645442568,-432.65,0.00018772,2]
[377980175,1754645442577,-400.0,0.00018772,2]
[377980177,1754645442587,-400.0,0.00018772,2]
[377980179,1754645442596,-400.0,0.00018772,2]
[377980181,1754645442605,-400.0,0.00018772,2]
[377980183,1754645442616,-809.86,0.00018772,2]
[377980185,1754645442625,-1745.57,0.00018772,2]
[377980187,1754645442635,-980.11,0.00018772,2]
[377980189,1754645442644,-400.0,0.00018772,2]
[377980191,1754645442654,-786.32,0.00018772,2]
[377980193,1754645442663,-400.0,0.00018772,2]
[377980195,1754645442673,-662.66,0.00018772,2]
[377980197,1754645442683,-547.44,0.00018772,2]
[377980199,1754645442693,-400.0,0.00018772,2]
[377980201,1754645442702,-910.82,0.00018772,2]
[377980203,1754645442712,-400.0,0.00018772,2]
[377980205,1754645442721,-1086.46,0.00018772,2]
[377980207,1754645442731,-400.0,0.00018772,2]
[377980209,1754645442740,-400.0,0.00018772,2]
[377980211,1754645442749,-400.0,0.00018772,2]
[377980213,1754645442759,-1195.8,0.00018772,2]
[377980215,1754645442769,-608.89,0.00018772,2]
[377980217,1754645442778,-1705.37,0.00018772,2]
[377980219,1754645442787,-400.0,0.00018772,2]
[377980221,1754645442797,-400.0,0.00018772,2]
[377980223,1754645442806,-3403.14,0.00018772,2]
[377980225,1754645442816,-400.0,0.00018772,2]
[377980227,1754645442825,-656.98,0.00018772,2]
[377980229,1754645442835,-400.0,0.00018772,2]
[377980231,1754645442844,-1400.67,0.00018772,2]
[377980233,1754645442853,-400.0,0.00018772,2]
[377980235,1754645442862,-400.0,0.00018772,2]
[377980237,1754645442871,-1400.75,0.00018772,2]
[377980239,1754645442881,-425.93,0.00018772,2]
[377980241,1754645442890,-485.18,0.00018772,2]
[377980243,1754645442899,-1232.28,0.00018772,2]
[377980245,1754645442908,-400.49819872,0.00018772,2]
[377980247,1754645442917,-1249.38,0.00018772,2]
[377980249,1754645442927,-400.0,0.00018772,2]
[377980251,1754645442936,-429.52,0.00018772,2]
[377980253,1754645442945,-400.0,0.00018772,2]
[377980255,1754645442955,-400.0,0.00018772,2]
[377980257,1754645442964,-400.0,0.00018772,2]
[377980259,1754645442974,-752.26,0.00018772,2]
[377980261,1754645442983,-1125.46,0.00018772,2]
[377980263,1754645442993,-400.0,0.00018772,2]
[377980265,1754645443002,-400.0,0.00018772,2]
[377980267,1754645443013,-993.14,0.00018772,2]
[377980269,1754645443022,-1078.3,0.00018772,2]
[377980271,1754645443032,-400.0,0.00018772,2]
[377980273,1754645443041,-1434.25,0.00018772,2]
[377980275,1754645443051,-400.0,0.00018772,2]
[377980277,1754645443061,-562.45,0.00018772,2]
[377980279,1754645443070,-424.82,0.00018772,2]
[377980281,1754645443080,-501.18,0.00018772,2]
[377980283,1754645443089,-421.1,0.00018772,2]
[377980285,1754645443099,-400.0,0.00018772,2]
[377980287,1754645443108,-400.0,0.00018772,2]
[377980289,1754645443118,-766.53,0.00018772,2]
[377980291,1754645443127,-400.0,0.00018772,2]
[377980293,1754645443136,-400.0,0.00018772,2]
[377980295,1754645443145,-1143.68,0.00018772,2]
[377980297,1754645443155,-760.34,0.00018772,2]
[377980299,1754645443164,-400.0,0.00018772,2]
[377980301,1754645443173,-735.62,0.00018772,2]
[377980303,1754645443183,-495.12,0.00018772,2]
[377980305,1754645443193,-1433.41,0.00018772,2]
[377980307,1754645443203,-400.0,0.00018772,2]
[377980309,1754645443212,-444.05,0.00018772,2]
[377980311,1754645443222,-400.0,0.00018772,2]
[377980339,1754645443487,-400.0,0.00018772,2]
[377980341,1754645443500,-400.0,0.00018772,2]
[377980343,1754645443510,-1276.28,0.00018772,2]
[377980345,1754645443520,-400.0,0.00018772,2]
[377980347,1754645443530,-3563.2,0.00018772,2]
[377980349,1754645443540,-593.15,0.00018772,2]
[377980351,1754645443549,-756.98,0.00018772,2]
[377980353,1754645443558,-2571.07,0.00018772,2]
[377980355,1754645443568,-500.0,0.00018772,2]
[377980357,1754645443578,-1231.2,0.00018772,2]
[377980359,1754645443588,-685.02,0.00018772,2]